fUSD/lending_fUSD_20260311
["ID","MTS","AMOUNT","RATE_DAILY","PERIOD"]
[408221122,1773257837048,490.41035244,9.4e-05,2]
[408221123,1773257837069,9.58964756,9.4e-05,2]
[408221124,1773257843034,500.0,9.4e-05,2]
[408221125,1773257847883,500.0,9.4e-05,2]
[408221126,1773257848397,500.0,9.4e-05,2]
[408221127,1773258008550,160.0,0.000144,2]
[408221128,1773258137114,500.0,9.4e-05,2]
[408221129,1773258141505,2675.87,0.000144,2]
[408221130,1773258144583,500.0,9.4e-05,2]
[408221131,1773258145194,500.0,9.4e-05,2]
[408221132,1773258151975,500.0,9.4e-05,2]
[408221133,1773258311524,161.0,0.000144,2]
[408221134,1773258417975,150.82,8.988e-05,2]
[408221135,1773258418197,150.82,9.63e-05,2]
[408221136,1773258418404,150.82,0.00010273,2]
[408221137,1773258418720,150.82,0.00010915,2]
[408221138,1773258419121,59.86,0.00011557,2]
[408221139,1773258419145,90.96,0.00011557,2]
[408221140,1773258419340,150.82,0.00012199,2]
[408221141,1773258419591,150.82,0.00012841,2]
[408221142,1773258419814,150.82,0.00013483,2]
[408221143,1773258420031,150.82,0.00014125,2]
[408221144,1773258443545,500.0,9.4e-05,2]
[408221149,1773258631552,-158.1,0.00014661,2]
[408221150,1773258631562,-134.87700002,0.00014767,2]
[408221151,1773258631657,-15.94299998,0.00014767,2]
[408221152,1773258631667,-1577.10524814,0.00014901,2]
[408221153,1773258631676,-300.0,0.00014999,2]
[408221154,1773258631685,-487.36,0.00015,2]
[408221155,1773258631695,-500.0,0.00015,30]
[408221156,1773258631704,-500.0,0.00015,30]
[408221157,1773258631714,-628.581726,0.00015,30]
[408221158,1773258631723,-396.95278957,0.00015,30]
[408221159,1773258631734,-105.81012662,0.00015,30]
[408221160,1773258631743,-500.0,0.00015,30]
[408221161,1773258631753,-841.90410103,0.00015,30]
[408221162,1773258631762,-750.73775205,0.00015,30]
[408221164,1773258631771,-881.14285643,0.00015,30]
[408221166,1773258631780,-500.0,0.00015,30]
[408221168,1773258631790,-502.82313972,0.000151,2]
[408221170,1773258631799,-500.0,0.000151,2]
[408221171,1773258631808,-500.0,0.000151,2]
[408221172,1773258631819,-500.0,0.000151,2]
[408221174,1773258631829,-500.26320598,0.000151,2]
[408221175,1773258631839,-500.0,0.000151,2]
[408221176,1773258631847,-500.0,0.000151,2]
[408221177,1773258631857,-500.0,0.000151,2]
[408221178,1773258631867,-500.0,0.000151,2]
[408221179,1773258631877,-487.36,0.00015274,2]
[408221180,1773258631886,-150.82,0.00015409,2]
[408221181,1773258631898,-487.36,0.00015548,2]
[408221182,1773258631907,-166.93318768,0.00015648,2]
[408221183,1773258631917,-500.0,0.00015648,2]
[408221184,1773258631926,-500.0,0.00015648,2]
[408221185,1773258631935,-1886.12,0.00015764,2]
[408221186,1773258631945,-487.36,0.00015822,2]
[408221187,1773258631955,-150.82,0.00016051,2]
[408221188,1773258631964,-487.36664044,0.00016096,2]
[408221189,1773258631975,-199.45738296,0.000162,2]
[408221190,1773258631984,-1914.0,0.00016416,2]
[408221191,1773258631994,-321.68616933,0.00016449,2]
[408221192,1773258632003,-3126.17136115,0.00016495,2]
[408221193,1773258632013,-500.0,0.00016612,2]
[408221194,1773258632022,-114.34996948,0.00016693,2]
[408221195,1773258632033,-36.47003052,0.00016693,2]
[408221196,1773258632043,-166.99,0.00016712,2]
[408221197,1773258632052,-510.0,0.00017,2]
[408221198,1773258632062,-150.82,0.00017335,2]
[408221199,1773258632071,-171.19,0.00017348,2]
[408221200,1773258632081,-150.82,0.00017977,2]
[408221201,1773258632090,-500.0,0.0001811,2]
[408221202,1773258632100,-200.0,0.00018328,2]
[408221203,1773258632111,-10766.2,0.00018356,2]
[408221204,1773258632120,-516.08,0.00018395,2]
[408221205,1773258632292,-1274.14,0.00018484,2]
[408221206,1773258632303,-21046.75956953,0.00018533,2]
[408221207,1773258632314,-8953.23043047,0.00018533,2]
[408221208,1773258632327,-200.0,0.00018651,2]
[408221209,1773258632336,-150.0,0.00018792,2]
[408221210,1773258632345,-174.61919141,0.00018999,2]
[408221211,1773258632354,-320.98232942,0.00019547,2]
[408221212,1773258632363,-500.0,0.00019688,2]
[408221213,1773258632373,-500.0,0.00019688,2]
[408221214,1773258632382,-500.0,0.00019688,2]
[408221215,1773258632391,-500.0,0.00019688,2]
[408221216,1773258632401,-500.0,0.00019688,2]
[408221217,1773258632411,-500.0,0.00019688,2]
[408221218,1773258632420,-500.0,0.00019688,2]
[408221219,1773258632429,-500.0,0.00019688,2]
[408221220,1773258632438,-199.29219493,0.00019688,2]
[408221221,1773258632448,-10056.2779,0.000197,2]
[408221222,1773258632457,-252.2364,0.000197,2]
[408221223,1773258632467,-2500.0,0.000197,2]
[408221224,1773258632477,-242.16717519,0.000197,2]
[408221225,1773258632486,-7899.9905,0.000197,2]
[408221226,1773258632495,-1000.0,0.000197,2]
[408221227,1773258632505,-500.0,0.00019723,2]
[408221228,1773258632514,-500.0,0.00019723,2]
[408221229,1773258632524,-150.0,0.00019723,2]
[408221230,1773258632533,-346.09236774,0.00019752,2]
[408221231,1773258632542,-3760.90010038,0.0001977,5]
[408221232,1773258632556,-346.09236774,0.0001977,2]
[408221233,1773258632566,-500.0,0.00019777,2]
[408221234,1773258632574,-500.0,0.00019777,2]
[408221235,1773258632584,-500.0,0.00019777,2]
[408221236,1773258632593,-500.0,0.00019777,2]
[408221237,1773258632602,-500.0,0.00019777,2]
[408221238,1773258632611,-500.0,0.00019777,2]
[408221239,1773258632620,-500.0,0.00019777,2]
[408221240,1773258632629,-500.0,0.00019777,2]
[408221241,1773258632643,-500.0,0.00019777,2]
[408221242,1773258632652,-500.0,0.00019777,2]
[408221243,1773258632661,-500.0,0.00019777,2]
[408221244,1773258632670,-500.0,0.00019778,2]
[408221245,1773258632679,-500.0,0.00019778,2]
[408221246,1773258632688,-249.0,0.00019778,2]
[408221247,1773258632698,-1725.3531437,0.00019781,2]
[408221248,1773258632708,-346.09236774,0.00019789,2]
[408221249,1773258632717,-1725.35314367,0.00019794,2]
[408221250,1773258632727,-500.0,0.00019799,2]
[408221251,1773258632736,-500.0,0.00019799,2]
[408221252,1773258632746,-152260.03292736,0.000198,2]
[408221253,1773258632758,-28287.65653539,0.000198,2]
[408221254,1773258632769,-7540.07883418,0.000198,2]
[408221260,1773258637647,-410.03200002,0.000198,2]
[408221261,1773258637659,-3216.5170958,0.000198,2]
[408221262,1773258637670,-383.909501,0.000198,2]
[408221263,1773258637683,-30666.16720625,0.000198,2]
[408221264,1773258637696,-5000.0,0.000198,2]
[408221265,1773258637707,-346.09236774,0.00019807,2]
[408221266,1773258637718,-1725.35314367,0.00019807,2]
[408221267,1773258637738,-1725.35314367,0.00019821,2]
[408221268,1773258637748,-346.09236774,0.00019826,2]
[408221269,1773258637757,-407.0,0.00019833,2]
[408221270,1773258637767,-500.0,0.00019833,2]
[408221271,1773258637776,-1725.35314367,0.00019834,2]
[408221272,1773258637785,-346.09236774,0.00019844,2]
[408221273,1773258637795,-1725.35314367,0.00019847,2]
[408221274,1773258637804,-1725.35314367,0.0001986,2]
[408221275,1773258637814,-346.09236774,0.00019863,2]
[408221276,1773258637826,-1725.35314367,0.00019874,2]
[408221277,1773258637835,-346.09236774,0.00019881,2]
[408221278,1773258637844,-1725.35314367,0.00019887,2]
[408221279,1773258637855,-500.0,0.00019887,2]
[408221280,1773258637865,-561.81000732,0.000199,2]
[408221281,1773258637874,-346.09236774,0.000199,2]
[408221282,1773258637884,-1725.35314367,0.000199,2]
[408221283,1773258637895,-811.44374725,0.000199,2]
[408221284,1773258637906,-3094.98299719,0.000199,2]
[408221285,1773258637916,-28007.80191935,0.000199,2]
[408221286,1773258637925,-500.0,0.00019942,2]
[408221287,1773258637935,-500.0,0.00019957,2]
[408221288,1773258637946,-500.0,0.00019957,2]
[408221289,1773258637956,-11536.7518002,0.00019958,2]
[408221290,1773258637965,-141408.5337833,0.00019958,2]
[408221292,1773258637974,-22277.3740141,0.00019958,2]
[408221294,1773258637983,-210.0,0.0001996,2]
[408221296,1773258637992,-500.0,0.00019973,2]
[408221298,1773258638001,-502.81664943,0.00019973,2]
[408221300,1773258638010,-5305.1462999,0.00019988,2]
[408221302,1773258638019,-4778.31245182,0.00019988,2]
[408221304,1773258638036,-640.93868497,0.00019988,2]
[408221305,1773258638047,-453.00898369,0.00019988,2]
[408221399,1773258639941,-8345.13662102,0.00019988,2]
[408221400,1773258639951,-154403.6444559,0.00019988,2]
[408221401,1773258639959,-150.0,0.00019989,2]
[408221402,1773258639969,-560.84,0.00019994,2]
[408221403,1773258639977,-500.0,0.00019994,2]
[408221404,1773258639987,-500.0,0.00019994,2]
[408221405,1773258639995,-579.9,0.00019994,2]
[408221406,1773258640005,-500.0,0.00019994,2]
[408221407,1773258640013,-500.0,0.00019994,2]
[408221408,1773258640022,-500.0,0.00019994,2]
[408221409,1773258640030,-289.3873478,0.00019994,2]
[408221410,1773258640040,-500.0,0.00019994,2]
[408221411,1773258640049,-500.0,0.00019994,2]
[408221412,1773258640058,-531.3103933,0.00019994,2]
[408221413,1773258640067,-502.83202664,0.00019994,2]
[408221414,1773258640076,-500.0,0.00019994,2]
[408221415,1773258640085,-509.98368022,0.00019994,2]
[408221416,1773258640095,-500.0,0.00019994,2]
[408221417,1773258640104,-500.0,0.00019997,2]
[408221418,1773258640113,-300.0,0.00019999,2]
[408221419,1773258640122,-300.0,0.00019999,2]
[408221420,1773258640131,-504.75795,0.00019999,5]
[408221421,1773258640140,-584.74137557,0.00019999,2]
[408221422,1773258640148,-155.318,0.00019999,2]
[408221423,1773258640157,-500.0,0.00019999,2]
[408221424,1773258640166,-500.0,0.00019999,2]
[408221425,1773258640175,-500.0,0.00019999,2]
[408221426,1773258640184,-500.0,0.00019999,2]
[408221427,1773258640193,-503.55073109,0.00019999,2]
[408221428,1773258640201,-397.97236465,0.00019999,2]
[408221429,1773258640210,-514.81342724,0.00019999,2]
[408221430,1773258640219,-500.0,0.00019999,2]
[408221431,1773258640227,-5785.0,0.0002,2]
[408221432,1773258640236,-4630.0,0.0002,2]
[408221433,1773258640245,-256917.48265686,0.0002,2]
[408221434,1773258640256,-4783.16358,0.0002,2]
[408221441,1773258642702,-24170.22549321,0.0002,2]
[408221442,1773258642714,-1867.79759428,0.0002,2]
[408221443,1773258642767,-1016.49353724,0.0002,2]
[408221444,1773258642778,-404.9186443,0.0002,2]
[408221445,1773258642789,-35231.66809645,0.0002,2]
[408221446,1773258642916,-1746.3823897,0.0002,2]
[408221447,1773258642971,-10751.74398593,0.0002,2]
[408221449,1773258642983,-20030.36061481,0.0002,2]
[408221465,1773258645776,-5632.25459061,0.0002,2]
[408221466,1773258645787,-431.96298978,0.0002,2]
[408221467,1773258645798,-5570.45453968,0.0002,2]
[408221468,1773258645809,-8995.41348923,0.0002,2]
[408221469,1773258645822,-6352.66367908,0.0002,2]
[408221470,1773258645834,-883.4800005,0.0002,2]
[408221471,1773258645845,-4074.12,0.0002,2]
[408221476,1773259026597,2653.0,0.000144,2]
[408221478,1773259348042,1969.29537996,0.0001,2]
[408221486,1773259831733,-665.72995843,0.000158,2]
[408221491,1773259831786,-280.56802864,0.000158,2]
[408221492,1773259831796,-600.0,0.0001592,2]
[408221493,1773259831805,-600.0,0.00015998,2]
[408221494,1773259831814,-1200.0,0.00015999,2]
[408221495,1773259831823,-5776.55264171,0.00016,2]
[408221496,1773259831832,-400.0,0.00016008,5]
[408221497,1773259831842,-251.0,0.00016199,2]
[408221498,1773259831851,-4895.38235154,0.000162,5]
[408221499,1773259831862,-104.62271039,0.000162,5]
[408221500,1773259831875,-150.0,0.000164,2]
[408221501,1773259831885,-213.0,0.000164,2]
[408221502,1773259831894,-302.46,0.000164,2]
[408221503,1773259831903,-352.98300505,0.000164,2]
[408221504,1773259831913,-13352.30224933,0.00017,2]
[408221505,1773259831922,-510.0,0.00017,2]
[408221506,1773259831930,-10838.19,0.0001722,2]
[408221507,1773259831940,-500.0,0.00017293,2]
[408221508,1773259831949,-166.66,0.00017365,2]
[408221510,1773259831957,-600.0,0.00017468,2]
[408221512,1773259831966,-2000.0,0.00017582,2]
[408221514,1773259831975,-2000.0,0.00017638,2]
[408221516,1773259831984,-166.66,0.00017731,2]
[408221518,1773259831994,-500.0,0.00017808,2]
[408221520,1773259832002,-400.50284531,0.00017972,2]
[408221523,1773259832012,-24370.65473499,0.00018,2]
[408221525,1773259832021,-15776.93682699,0.00018063,2]
[408221531,1773259832039,-34575.79269775,0.00018073,2]
[408221535,1773259832056,-854.30213,0.00018073,2]
[408221539,1773259832067,-2072.84178342,0.00018073,2]
[408221542,1773259832078,-2002.36598113,0.00018073,2]
[408221544,1773259832089,-1424.51542341,0.00018073,2]
[408221546,1773259832100,-575.75,0.00018073,2]
[408221568,1773259837853,-422.58467,0.00018073,2]
[408221569,1773259837866,-440.42731429,0.00018073,2]
[408221570,1773259837875,-182.63,0.00018073,2]
[408221571,1773259837885,-16.60566659,0.00018073,2]
[408221572,1773259837896,-133.39433341,0.00018073,2]
[408221573,1773259837906,-166.66,0.00018096,2]
[408221574,1773259837916,-1999.0,0.00018157,2]
[408221575,1773259837926,-290.4435845,0.000182,2]
[408221576,1773259837938,-314.49135257,0.000182,2]
[408221577,1773259837963,-654.12506293,0.000182,2]
[408221578,1773259837972,-166.66,0.00018208,2]
[408221579,1773259837982,-42.94506655,0.00018431,2]
[408221580,1773259838019,-957.05493345,0.00018431,2]
[408221581,1773259838029,-166.66,0.00018462,2]
[408221582,1773259838039,-182.63,0.00018676,2]
[408221583,1773259838048,-1639.0,0.00018705,2]
[408221584,1773259838057,-246.0,0.00018779,2]
[408221585,1773259838067,-909.45870512,0.00018822,2]
[408221586,1773259838077,-166.66,0.00018828,2]
[408221587,1773259838086,-26059.6787,0.00018899,2]
[408221588,1773259838096,-165.53,0.00018922,2]
[408221589,1773259838105,-909.45870512,0.00018942,2]
[408221590,1773259838114,-166.66,0.00018959,2]
[408221591,1773259838125,-174.61919142,0.00018999,2]
[408221592,1773259838135,-500.0,0.00018999,2]
[408221593,1773259838145,-500.0,0.00018999,2]
[408221594,1773259838158,-500.0,0.00018999,2]
[408221595,1773259838167,-500.0,0.00018999,2]
[408221596,1773259838176,-500.0,0.00018999,2]
[408221598,1773259838186,-500.0,0.00018999,2]
[408221599,1773259838195,-500.0,0.00018999,2]
[408221601,1773259838205,-500.0,0.00018999,2]
[408221622,1773259838414,-500.0,0.00018999,2]
[408221623,1773259838427,-500.0,0.00018999,2]
[408221624,1773259838437,-500.0,0.00018999,2]
[408221625,1773259838446,-504.98137836,0.00018999,2]
[408221626,1773259838455,-4000.0,0.00018999,2]
[408221627,1773259838464,-909.45870512,0.00019062,2]
[408221628,1773259838474,-690.74,0.00019106,2]
[408221629,1773259838485,-909.45870512,0.00019181,2]
[408221630,1773259838494,-166.66,0.00019193,2]
[408221631,1773259838504,-2000.0,0.000192,2]
[408221632,1773259838515,-1000.0,0.000192,2]
[408221633,1773259838526,-1945.31421399,0.000192,2]
[408221634,1773259838537,-2333.64,0.0001925,2]
[408221635,1773259838546,-1560.42,0.00019273,2]
[408221636,1773259838556,-182.63,0.00019278,2]
[408221637,1773259838565,-300.0,0.000193,7]
[408221638,1773259838574,-909.45870512,0.00019301,2]
[408221639,1773259838584,-600.0,0.000194,7]
[408221640,1773259838593,-909.45870512,0.00019421,2]
[408221641,1773259838602,-900.0,0.000195,7]
[408221642,1773259838612,-909.45870512,0.00019541,2]
[408221643,1773259838622,-729.0,0.00019555,2]
[408221644,1773259838631,-1300.0,0.000196,7]
[408221645,1773259838640,-2000.0,0.000196,2]
[408221646,1773259838650,-909.45870512,0.0001966,2]
[408221647,1773259838660,-150.0,0.00019668,2]
[408221648,1773259838669,-150.0,0.00019668,2]
[408221649,1773259838678,-150.0,0.00019668,2]
[408221650,1773259838687,-500.0,0.00019668,2]
[408221651,1773259838697,-500.0,0.00019668,2]
[408221652,1773259838707,-500.0,0.00019668,2]
[408221653,1773259838716,-150.0,0.00019668,2]
[408221654,1773259838725,-160.57620522,0.00019668,2]
[408221655,1773259838735,-150.0,0.00019668,2]
[408221656,1773259838745,-150.0,0.00019668,2]
[408221657,1773259838755,-150.0,0.00019668,2]
[408221658,1773259838764,-500.0,0.00019668,2]
[408221659,1773259838773,-220.02326955,0.00019668,2]
[408221660,1773259838782,-150.0,0.00019668,2]
[408221661,1773259838792,-150.0,0.00019668,2]
[408221662,1773259838801,-150.0,0.00019668,2]
[408221663,1773259838810,-150.0,0.00019668,2]
[408221664,1773259838819,-150.0,0.00019668,2]
[408221665,1773259838828,-150.0,0.00019668,2]
[408221666,1773259838837,-500.0,0.00019668,2]
[408221667,1773259838846,-150.0,0.00019668,2]
[408221668,1773259838855,-150.0,0.00019668,2]
[408221669,1773259838865,-150.0,0.00019668,2]
[408221670,1773259838874,-150.0,0.00019668,2]
[408221671,1773259838883,-150.0,0.00019668,2]
[408221672,1773259838892,-500.0,0.00019668,2]
[408221673,1773259838901,-168.0,0.00019686,2]
[408221674,1773259838910,-2500.0,0.0001969,2]
[408221675,1773259838919,-2024.0,0.000197,2]
[408221676,1773259838928,-1600.0,0.000197,7]
[408221677,1773259838937,-166.66,0.0001971,2]
[408221678,1773259838946,-246.0,0.00019718,2]
[408221679,1773259838955,-539.0,0.00019723,2]
[408221680,1773259838964,-500.0,0.00019723,2]
[408221681,1773259838973,-500.0,0.00019723,2]
[408221682,1773259838982,-219.97141228,0.00019723,2]
[408221683,1773259838991,-150.0,0.00019723,2]
[408221684,1773259839000,-250.0,0.00019723,2]
[408221685,1773259839009,-253.29632904,0.00019723,2]
[408221686,1773259839018,-500.0,0.00019723,2]
[408221687,1773259839027,-150.0,0.00019723,2]
[408221688,1773259839035,-150.0,0.00019723,2]
[408221689,1773259839045,-150.79,0.00019723,2]
[408221690,1773259839053,-150.0,0.00019723,2]
[408221691,1773259839062,-150.0,0.00019723,2]
[408221692,1773259839071,-186.99459924,0.00019723,2]
[408221693,1773259839083,-500.0,0.00019723,2]
[408221694,1773259839092,-250.0,0.00019723,2]
[408221695,1773259839101,-150.0,0.00019723,2]
[408221696,1773259839110,-500.0,0.00019723,2]
[408221697,1773259839119,-738.85149051,0.00019729,2]
[408221698,1773259839128,-300.0,0.00019738,2]
[408221699,1773259839137,-738.85149047,0.00019753,2]
[408221700,1773259839146,-1000.0,0.00019763,2]
[408221701,1773259839159,-1000.0,0.00019765,2]
[408221702,1773259839168,-638.90238757,0.00019778,2]
[408221703,1773259839178,-500.0,0.00019778,2]
[408221704,1773259839187,-150.0,0.00019778,2]
[408221705,1773259839197,-500.0,0.00019778,2]
[408221706,1773259839207,-150.0,0.00019778,2]
[408221707,1773259839216,-150.0,0.00019778,2]
[408221708,1773259839225,-500.0,0.00019778,2]
[408221709,1773259839234,-738.85149047,0.00019778,2]
[408221710,1773259839243,-1000.0,0.00019778,2]
[408221711,1773259839253,-2000.0,0.0001978,2]
[408221712,1773259839262,-909.45870512,0.0001978,2]
[408221713,1773259839271,-1000.0,0.00019793,2]
[408221714,1773259839281,-500.0,0.00019799,2]
[408221715,1773259839290,-500.0,0.00019799,2]
[408221716,1773259839299,-289.3873478,0.00019799,2]
[408221717,1773259839309,-500.0,0.00019799,2]
[408221718,1773259839318,-501.54386851,0.00019799,2]
[408221719,1773259839327,-500.0,0.00019799,2]
[408221720,1773259839336,-500.0,0.00019799,2]
[408221721,1773259839346,-500.0,0.00019799,2]
[408221722,1773259839355,-500.0,0.00019799,2]
[408221723,1773259839364,-531.3103933,0.00019799,2]
[408221724,1773259839374,-500.0,0.00019799,2]
[408221725,1773259839383,-500.0,0.00019799,2]
[408221726,1773259839393,-502.83202664,0.00019799,2]
[408221727,1773259839406,-500.0,0.00019799,2]
[408221728,1773259839416,-300.0,0.000198,7]
[408221729,1773259839425,-9683.76543058,0.000198,2]
[408221730,1773259839434,-1439.89,0.00019801,2]
[408221731,1773259839444,-1000.0,0.00019802,2]
[408221732,1773259839456,-738.85149047,0.00019802,2]
[408221733,1773259839465,-9683.76543058,0.00019811,2]
[408221734,1773259839474,-9683.76543058,0.00019822,2]
[408221735,1773259839484,-738.85149047,0.00019827,2]
[408221736,1773259839493,-1000.0,0.00019829,2]
[408221737,1773259839502,-150.0,0.00019832,2]
[408221738,1773259839512,-500.0,0.00019832,2]
[408221739,1773259839521,-500.0,0.00019832,2]
[408221740,1773259839530,-9683.76543058,0.00019833,2]
[408221741,1773259839539,-1000.0,0.00019842,2]
[408221742,1773259839548,-9683.76543058,0.00019844,2]
[408221743,1773259839558,-150.0,0.00019847,2]
[408221744,1773259839567,-150.0,0.00019851,2]
[408221745,1773259839576,-738.85149047,0.00019851,2]
[408221746,1773259839586,-9683.76543058,0.00019856,2]
[408221747,1773259839595,-154.21,0.00019857,2]
[408221748,1773259839604,-9683.76543058,0.00019867,2]
[408221749,1773259839613,-1000.0,0.00019868,2]
[408221750,1773259839622,-150.0,0.00019875,2]
[408221751,1773259839631,-738.85149047,0.00019876,2]
[408221752,1773259839641,-9683.76543058,0.00019878,2]
[408221753,1773259839650,-182.63,0.00019881,2]
[408221754,1773259839659,-150.0,0.00019887,2]
[408221755,1773259839668,-500.0,0.00019887,2]
[408221756,1773259839677,-500.0,0.00019887,2]
[408221757,1773259839687,-9683.76543058,0.00019889,2]
[408221758,1773259839696,-154.21,0.0001989,2]
[408221759,1773259839706,-150.0,0.00019894,2]
[408221760,1773259839715,-5000.0,0.00019897,2]
[408221761,1773259839725,-151.0,0.00019897,2]
[408221762,1773259839734,-530.71947528,0.00019897,2]
[408221763,1773259839743,-500.0,0.00019899,2]
[408221764,1773259839752,-500.0,0.00019899,2]
[408221765,1773259839761,-500.0,0.00019899,2]
[408221766,1773259839770,-500.0,0.00019899,2]
[408221767,1773259839779,-500.0,0.00019899,2]
[408221768,1773259839789,-500.0,0.00019899,2]
[408221769,1773259839798,-500.0,0.00019899,2]
[408221770,1773259839808,-500.0,0.00019899,2]
[408221771,1773259839818,-500.0,0.00019899,2]
[408221772,1773259839827,-500.0,0.00019899,2]
[408221773,1773259839837,-150.31218067,0.000199,6]
[408221774,1773259839850,-150.86908288,0.000199,6]
[408221775,1773259839859,-283.0868,0.000199,2]
[408221776,1773259839868,-21526.8023,0.000199,2]
[408221777,1773259839877,-54562.94203819,0.000199,2]
[408221778,1773259839892,-3424.37572502,0.000199,2]
[408221779,1773259839903,-6814.94453654,0.000199,2]
[408221780,1773259839914,-2181.6451335,0.000199,2]
[408221781,1773259839925,-1548.78893979,0.000199,2]
[408221782,1773259839936,-1042.26304133,0.000199,2]
[408221783,1773259839948,-12496.31740234,0.000199,2]
[408221784,1773259839959,-1337.013195,0.000199,2]
[408221785,1773259840022,-13544.02098829,0.000199,2]
[408221786,1773259840032,-1000.0,0.000199,2]
[408221787,1773259840041,-4950.3093035,0.000199,3]
[408221788,1773259840051,-1380.212,0.000199,2]
[408221789,1773259840060,-173.225,0.000199,2]
[408221790,1773259840069,-758.01210753,0.000199,2]
[408221791,1773259840078,-151.0,0.000199,2]
[408221792,1773259840087,-151.0,0.000199,2]
[408221793,1773259840097,-151.0,0.000199,2]
[408221794,1773259840106,-151.0,0.000199,2]
[408221795,1773259840116,-151.0,0.000199,2]
[408221796,1773259840126,-151.0,0.000199,2]
[408221797,1773259840135,-151.0,0.000199,2]
[408221798,1773259840144,-2667.372802,0.000199,2]
[408221799,1773259840160,-2667.372802,0.000199,2]
[408221800,1773259840169,-2667.372802,0.000199,2]
[408221801,1773259840181,-2667.372802,0.000199,2]
[408221802,1773259840191,-350.664736,0.000199,2]
[408221803,1773259840202,-350.664736,0.000199,2]
[408221804,1773259840211,-350.664736,0.000199,2]
[408221805,1773259840221,-350.664736,0.000199,2]
[408221806,1773259840233,-300.0,0.000199,7]
[408221807,1773259840241,-151.0,0.000199,2]
[408221808,1773259840251,-151.0,0.000199,2]
[408221809,1773259840260,-151.0,0.000199,2]
[408221810,1773259840268,-738.85149047,0.000199,2]
[408221811,1773259840278,-195.015343,0.000199,2]
[408221812,1773259840287,-398.045812,0.000199,2]
[408221813,1773259840295,-195.015343,0.000199,2]
[408221814,1773259840305,-398.045812,0.000199,2]
[408221815,1773259840314,-195.015343,0.000199,2]
[408221816,1773259840323,-398.045812,0.000199,2]
[408221817,1773259840332,-195.015343,0.000199,2]
[408221818,1773259840341,-398.045812,0.000199,2]
[408221819,1773259840350,-909.45870512,0.000199,2]
[408221820,1773259840358,-540.96249816,0.000199,2]
[408221821,1773259840367,-2063.32199812,0.000199,2]
[408221822,1773259840376,-2000.0,0.000199,2]
[408221823,1773259840386,-9683.76543058,0.000199,2]
[408221824,1773259840395,-250.0,0.00019942,2]
[408221825,1773259840404,-154.17330698,0.00019942,2]
[408221826,1773259840414,-500.0,0.00019942,2]
[408221827,1773259840423,-1439.89,0.00019952,2]
[408221828,1773259840432,-1000.0,0.00019955,2]
[408221829,1773259840441,-1028.17250405,0.00019956,2]
[408221830,1773259840450,-500.0,0.00019957,2]
[408221831,1773259840459,-500.0,0.00019957,2]
[408221832,1773259840468,-500.0,0.00019957,2]
[408221833,1773259840477,-500.0,0.00019957,2]
[408221834,1773259840486,-500.0,0.00019957,2]
[408221835,1773259840495,-500.0,0.00019957,2]
[408221836,1773259840504,-500.0,0.00019957,2]
[408221837,1773259840513,-500.0,0.00019957,2]
[408221838,1773259840522,-514.81342724,0.00019957,2]
[408221839,1773259840531,-4628.0,0.00019962,2]
[408221840,1773259840540,-1000.0,0.00019962,2]